[Event "Titled Tuesday Blitz April 05 Late 2022"]
[White "Tregubov, Pavel V."]
[Black "Mikhalsky, Vladimir"]
[WhiteFideId "4115341"]
[BlackFideId "14144352"]
[WhiteElo "2341"]
[BlackElo "2301"]
[Result "1-0"]
[Round "07"]
[TimeControl "180+1"]
[Date "2022.04.06"]
[WhiteClock "0:00:51"]
[BlackClock "0:00:39"]

1. e4 {[%clk 0:03:00]}  g6 {[%clk 0:02:59]} 2. d4 {[%clk 0:03:00]}  Bg7 {[%clk 0:02:59]} 3. Nf3 {[%clk 0:03:01]}  d6 {[%clk 0:02:59]} 4. Nc3 {[%clk 0:03:01]}  Nd7 {[%clk 0:02:58]} 5. Be2 {[%clk 0:02:58]}  a6 {[%clk 0:02:58]} 6. O-O {[%clk 0:02:58]}  b5 {[%clk 0:02:56]} 7. a4 {[%clk 0:02:58]}  b4 {[%clk 0:02:55]} 8. Nd5 {[%clk 0:02:58]}  a5 {[%clk 0:02:55]} 9. c3 {[%clk 0:02:53]}  c6 {[%clk 0:02:54]} 10. Ne3 {[%clk 0:02:53]}  Ngf6 {[%clk 0:02:21]} 11. e5 {[%clk 0:02:40]}  Ne4 {[%clk 0:02:21]} 12. Qc2 {[%clk 0:02:34]}  d5 {[%clk 0:02:06]} 13. cxb4 {[%clk 0:02:33]}  Nb6 {[%clk 0:01:45]} 14. bxa5 {[%clk 0:02:23]}  Rxa5 {[%clk 0:01:44]} 15. b4 {[%clk 0:02:23]}  Ra7 {[%clk 0:01:44]} 16. a5 {[%clk 0:02:23]}  Nd7 {[%clk 0:01:38]} 17. Qxc6 {[%clk 0:02:19]}  Bb7 {[%clk 0:01:37]} 18. Qc2 {[%clk 0:02:08]}  O-O {[%clk 0:01:36]} 19. Nd2 {[%clk 0:02:04]}  Qa8 {[%clk 0:01:31]} 20. Nb3 {[%clk 0:02:01]}  Rc8 {[%clk 0:01:28]} 21. Nc5 {[%clk 0:01:51]}  Ndxc5 {[%clk 0:01:22]} 22. bxc5 {[%clk 0:01:45]}  Rxa5 {[%clk 0:01:21]} 23. Bb2 {[%clk 0:01:43]}  Nxc5 {[%clk 0:01:12]} 24. dxc5 {[%clk 0:01:28]}  Rcxc5 {[%clk 0:01:12]} 25. Qxc5 {[%clk 0:01:22]}  Rxc5 {[%clk 0:01:10]} 26. Rxa8+ {[%clk 0:01:22]}  Bxa8 {[%clk 0:01:10]} 27. Bd4 {[%clk 0:01:18]}  Ra5 {[%clk 0:01:06]} 28. Rb1 {[%clk 0:01:12]}  f6 {[%clk 0:00:55]} 29. e6 {[%clk 0:01:06]}  Bh6 {[%clk 0:00:54]} 30. Rb8+ {[%clk 0:01:02]}  Kg7 {[%clk 0:00:54]} 31. Re8 {[%clk 0:01:00]}  Bxe3 {[%clk 0:00:44]} 32. fxe3 {[%clk 0:00:59]}  Ra2 {[%clk 0:00:40]} 33. Rxe7+ {[%clk 0:00:58]}  Kh6 {[%clk 0:00:40]} 34. Bf3 {[%clk 0:00:55]}  Bc6 {[%clk 0:00:39]} 35. Bxf6 {[%clk 0:00:51]} 1-0


[Site "https://www.chess.com"]

[Event "Titled Tuesday Blitz April 05 Late 2022"]
[White "Tristan, Leonardo"]
[Black "Xiong, Jeffery"]
[WhiteFideId "113816"]
[BlackFideId "2047640"]
[WhiteElo "2404"]
[BlackElo "2727"]
[Result "1-0"]
[Round "07"]
[TimeControl "180+1"]
[Date "2022.04.05"]
[WhiteClock "0:00:57"]
[BlackClock "0:00:43"]

1. d4 {[%clk 0:03:00]}  Nf6 {[%clk 0:02:59]} 2. Nf3 {[%clk 0:03:01]}  d5 {[%clk 0:02:58]} 3. Bf4 {[%clk 0:03:01]}  c5 {[%clk 0:02:53]} 4. e3 {[%clk 0:03:01]}  e6 {[%clk 0:02:54]} 5. Nbd2 {[%clk 0:03:00]}  Nbd7 {[%clk 0:02:54]} 6. c3 {[%clk 0:02:51]}  Be7 {[%clk 0:02:54]} 7. Ne5 {[%clk 0:02:47]}  O-O {[%clk 0:02:51]} 8. Bd3 {[%clk 0:02:47]}  c4 {[%clk 0:02:51]} 9. Bc2 {[%clk 0:02:47]}  Nxe5 {[%clk 0:02:50]} 10. Bxe5 {[%clk 0:02:45]}  Nd7 {[%clk 0:02:51]} 11. Bg3 {[%clk 0:02:44]}  b5 {[%clk 0:02:51]} 12. e4 {[%clk 0:02:43]}  b4 {[%clk 0:02:42]} 13. O-O {[%clk 0:02:39]}  Bb7 {[%clk 0:02:40]} 14. Re1 {[%clk 0:02:39]}  Qa5 {[%clk 0:02:38]} 15. Re3 {[%clk 0:02:05]}  Bg5 {[%clk 0:02:38]} 16. f4 {[%clk 0:02:04]}  Be7 {[%clk 0:02:37]} 17. e5 {[%clk 0:01:49]}  g6 {[%clk 0:02:36]} 18. h4 {[%clk 0:01:41]}  bxc3 {[%clk 0:02:36]} 19. bxc3 {[%clk 0:01:41]}  Rfb8 {[%clk 0:02:32]} 20. h5 {[%clk 0:01:39]}  Nf8 {[%clk 0:02:33]} 21. hxg6 {[%clk 0:01:39]}  hxg6 {[%clk 0:02:34]} 22. Qg4 {[%clk 0:01:31]}  Bc8 {[%clk 0:02:16]} 23. Bh4 {[%clk 0:01:27]}  Qd8 {[%clk 0:02:16]} 24. Rh3 {[%clk 0:01:26]}  Rb2 {[%clk 0:02:16]} 25. Rc1 {[%clk 0:01:26]}  Rab8 {[%clk 0:00:58]} 26. Bg5 {[%clk 0:01:23]}  f5 {[%clk 0:00:49]} 27. exf6 {[%clk 0:01:19]}  Bxf6 {[%clk 0:00:49]} 28. Qh4 {[%clk 0:01:19]}  Kf7 {[%clk 0:00:48]} 29. Nf3 {[%clk 0:01:14]}  Bxg5 {[%clk 0:00:45]} 30. fxg5 {[%clk 0:01:10]}  Ke7 {[%clk 0:00:45]} 31. Ne5 {[%clk 0:01:04]}  Bd7 {[%clk 0:00:46]} 32. Qf4 {[%clk 0:01:00]}  Be8 {[%clk 0:00:43]} 33. Rh8 {[%clk 0:00:57]} 1-0


[Site "https://www.chess.com"]

[Event "Titled Tuesday Blitz April 05 Late 2022"]
[White "Vasquez Schroeder, Rodrigo"]
[Black "Hakobyan, Aram"]
[WhiteFideId "3400042"]
[BlackFideId "13306677"]
[WhiteElo "2561"]
[BlackElo "2557"]
[Result "1-0"]
[Round "07"]
[TimeControl "180+1"]
[Date "2022.04.05"]
[WhiteClock "0:00:35"]
[BlackClock "0:00:04"]

1. e4 {[%clk 0:03:00]}  e5 {[%clk 0:02:59]} 2. Nf3 {[%clk 0:03:00]}  Nc6 {[%clk 0:02:59]} 3. Bb5 {[%clk 0:03:01]}  a6 {[%clk 0:03:00]} 4. Ba4 {[%clk 0:03:01]}  d6 {[%clk 0:03:00]} 5. O-O {[%clk 0:02:57]}  Bd7 {[%clk 0:03:00]} 6. c3 {[%clk 0:02:54]}  g6 {[%clk 0:03:00]} 7. d4 {[%clk 0:02:53]}  Bg7 {[%clk 0:02:59]} 8. dxe5 {[%clk 0:02:53]}  dxe5 {[%clk 0:02:53]} 9. Bg5 {[%clk 0:02:49]}  Nf6 {[%clk 0:02:50]} 10. Nbd2 {[%clk 0:02:44]}  h6 {[%clk 0:02:49]} 11. Be3 {[%clk 0:02:43]}  O-O {[%clk 0:02:38]} 12. Bc5 {[%clk 0:02:35]}  Re8 {[%clk 0:02:38]} 13. Re1 {[%clk 0:02:24]}  b6 {[%clk 0:02:37]} 14. Ba3 {[%clk 0:02:24]}  Na7 {[%clk 0:02:28]} 15. Bxd7 {[%clk 0:02:16]}  Nxd7 {[%clk 0:02:29]} 16. b3 {[%clk 0:02:12]}  Nb5 {[%clk 0:02:28]} 17. Bb2 {[%clk 0:02:13]}  Nc5 {[%clk 0:02:28]} 18. a4 {[%clk 0:02:05]}  Nd6 {[%clk 0:02:21]} 19. Ba3 {[%clk 0:02:04]}  h5 {[%clk 0:02:00]} 20. Bxc5 {[%clk 0:02:02]}  bxc5 {[%clk 0:02:01]} 21. Qe2 {[%clk 0:02:02]}  Qe7 {[%clk 0:01:42]} 22. Nc4 {[%clk 0:01:55]}  Qe6 {[%clk 0:01:42]} 23. Nfd2 {[%clk 0:01:48]}  Bh6 {[%clk 0:01:41]} 24. Nxd6 {[%clk 0:01:47]}  cxd6 {[%clk 0:01:40]} 25. Nc4 {[%clk 0:01:48]}  Rab8 {[%clk 0:01:34]} 26. Red1 {[%clk 0:01:40]}  Rxb3 {[%clk 0:01:14]} 27. Rxd6 {[%clk 0:01:40]}  Qe7 {[%clk 0:01:14]} 28. Qd3 {[%clk 0:01:36]}  Reb8 {[%clk 0:01:10]} 29. g3 {[%clk 0:01:28]}  h4 {[%clk 0:01:09]} 30. Kg2 {[%clk 0:01:26]}  Bf8 {[%clk 0:00:58]} 31. Rxa6 {[%clk 0:01:22]}  Qg5 {[%clk 0:00:45]} 32. Qf3 {[%clk 0:01:12]}  Rb1 {[%clk 0:00:42]} 33. Rxb1 {[%clk 0:01:12]}  Rxb1 {[%clk 0:00:43]} 34. Ra7 {[%clk 0:01:00]}  Be7 {[%clk 0:00:37]} 35. Ne3 {[%clk 0:00:58]}  Qh6 {[%clk 0:00:22]} 36. Qg4 {[%clk 0:00:55]}  Bg5 {[%clk 0:00:08]} 37. Qd7 {[%clk 0:00:50]}  h3+ {[%clk 0:00:05]} 38. Kf3 {[%clk 0:00:51]}  Qg7 {[%clk 0:00:05]} 39. Nd5 {[%clk 0:00:45]}  Rb8 {[%clk 0:00:06]} 40. Qxh3 {[%clk 0:00:45]}  Re8 {[%clk 0:00:03]} 41. Qd7 {[%clk 0:00:44]}  Qf8 {[%clk 0:00:03]} 42. h4 {[%clk 0:00:39]}  Rd8 {[%clk 0:00:02]} 43. Qg4 {[%clk 0:00:36]}  Bh6 {[%clk 0:00:03]} 44. h5 {[%clk 0:00:35]}  Kh8 {[%clk 0:00:03]} 45. hxg6 {[%clk 0:00:35]}  fxg6+ {[%clk 0:00:04]} 46. Kg2 {[%clk 0:00:35]} 1-0


[Site "https://www.chess.com"]

[Event "Titled Tuesday Blitz April 05 Late 2022"]
[White "Adewumi, Tanitoluwa"]
[Black "Czopor, Maciej"]
[WhiteFideId "30966396"]
[BlackFideId "21805431"]
[WhiteElo "2550"]
[BlackElo "2672"]
[Result "0-1"]
[Round "08"]
[TimeControl "180+1"]
[Date "2022.04.06"]
[WhiteClock "0:00:01"]
[BlackClock "0:00:30"]

1. e4 {[%clk 0:03:00]}  c6 {[%clk 0:02:54]} 2. d4 {[%clk 0:03:00]}  d5 {[%clk 0:02:55]} 3. exd5 {[%clk 0:03:01]}  cxd5 {[%clk 0:02:55]} 4. Bd3 {[%clk 0:03:01]}  Nc6 {[%clk 0:02:56]} 5. c3 {[%clk 0:03:02]}  g6 {[%clk 0:02:56]} 6. Bf4 {[%clk 0:03:01]}  Bg7 {[%clk 0:02:56]} 7. Nf3 {[%clk 0:03:02]}  Bf5 {[%clk 0:02:55]} 8. O-O {[%clk 0:03:01]}  Bxd3 {[%clk 0:02:55]} 9. Qxd3 {[%clk 0:03:02]}  e6 {[%clk 0:02:55]} 10. Nbd2 {[%clk 0:03:02]}  Nge7 {[%clk 0:02:55]} 11. Rae1 {[%clk 0:03:03]}  O-O {[%clk 0:02:56]} 12. Ne5 {[%clk 0:03:03]}  Rc8 {[%clk 0:02:54]} 13. Qh3 {[%clk 0:03:02]}  Nxe5 {[%clk 0:02:52]} 14. dxe5 {[%clk 0:03:02]}  Qb6 {[%clk 0:02:48]} 15. Rb1 {[%clk 0:02:19]}  Qb5 {[%clk 0:02:35]} 16. Nf3 {[%clk 0:02:10]}  Qd3 {[%clk 0:02:05]} 17. Rbd1 {[%clk 0:01:50]}  Qf5 {[%clk 0:02:05]} 18. Qh4 {[%clk 0:01:49]}  Nc6 {[%clk 0:01:51]} 19. Rfe1 {[%clk 0:01:36]}  h5 {[%clk 0:01:51]} 20. Qg3 {[%clk 0:01:20]}  Qg4 {[%clk 0:01:42]} 21. Qxg4 {[%clk 0:01:01]}  hxg4 {[%clk 0:01:42]} 22. Nd4 {[%clk 0:01:02]}  Ne7 {[%clk 0:01:37]} 23. Bg5 {[%clk 0:00:59]}  Nf5 {[%clk 0:01:37]} 24. Bf4 {[%clk 0:00:49]}  Rc4 {[%clk 0:01:33]} 25. Bg3 {[%clk 0:00:38]}  Nxd4 {[%clk 0:01:28]} 26. Rxd4 {[%clk 0:00:38]}  Rxd4 {[%clk 0:01:28]} 27. cxd4 {[%clk 0:00:39]}  Rc8 {[%clk 0:01:28]} 28. f3 {[%clk 0:00:22]}  gxf3 {[%clk 0:01:26]} 29. gxf3 {[%clk 0:00:22]}  Rc2 {[%clk 0:01:27]} 30. Rb1 {[%clk 0:00:23]}  Bh6 {[%clk 0:01:22]} 31. f4 {[%clk 0:00:15]}  Rd2 {[%clk 0:01:13]} 32. Rf1 {[%clk 0:00:13]}  Rxd4 {[%clk 0:01:12]} 33. Kg2 {[%clk 0:00:14]}  Rd2+ {[%clk 0:01:11]} 34. Rf2 {[%clk 0:00:13]}  Rxf2+ {[%clk 0:01:11]} 35. Kxf2 {[%clk 0:00:13]}  Kf8 {[%clk 0:01:11]} 36. h4 {[%clk 0:00:11]}  Ke7 {[%clk 0:01:11]} 37. Ke3 {[%clk 0:00:11]}  Kd7 {[%clk 0:01:11]} 38. Kd4 {[%clk 0:00:12]}  Kc6 {[%clk 0:01:12]} 39. a4 {[%clk 0:00:12]}  Bf8 {[%clk 0:01:11]} 40. b3 {[%clk 0:00:12]}  Bc5+ {[%clk 0:01:11]} 41. Kd3 {[%clk 0:00:13]}  Be7 {[%clk 0:01:03]} 42. Bf2 {[%clk 0:00:12]}  a6 {[%clk 0:01:02]} 43. Kc3 {[%clk 0:00:11]}  Bc5 {[%clk 0:01:00]} 44. Be1 {[%clk 0:00:10]}  Be3 {[%clk 0:00:58]} 45. Bg3 {[%clk 0:00:08]}  d4+ {[%clk 0:00:44]} 46. Kc4 {[%clk 0:00:09]}  b5+ {[%clk 0:00:44]} 47. axb5+ {[%clk 0:00:03]}  axb5+ {[%clk 0:00:45]} 48. Kd3 {[%clk 0:00:04]}  Kd5 {[%clk 0:00:45]} 49. Bh2 {[%clk 0:00:01]}  Bf2 {[%clk 0:00:45]} 50. Ke2 {[%clk 0:00:01]}  Bxh4 {[%clk 0:00:45]} 51. Bg1 {[%clk 0:00:01]}  Bd8 {[%clk 0:00:42]} 52. Kd3 {[%clk 0:00:01]}  Bb6 {[%clk 0:00:41]} 53. Bf2 {[%clk 0:00:01]}  Bc5 {[%clk 0:00:39]} 54. Bh4 {[%clk 0:00:02]}  Bb4 {[%clk 0:00:38]} 55. Bg5 {[%clk 0:00:02]}  Be1 {[%clk 0:00:36]} 56. Bh6 {[%clk 0:00:02]}  Bf2 {[%clk 0:00:36]} 57. Bg5 {[%clk 0:00:02]}  Be3 {[%clk 0:00:36]} 58. Bh6 {[%clk 0:00:03]}  Bf2 {[%clk 0:00:29]} 59. Bg5 {[%clk 0:00:03]}  Bg3 {[%clk 0:00:30]} 60. Bh6 {[%clk 0:00:02]}  Bh4 {[%clk 0:00:30]} 61. Bg7 {[%clk 0:00:02]}  g5 {[%clk 0:00:30]} 62. fxg5 {[%clk 0:00:01]}  Bxg5 {[%clk 0:00:31]} 63. Bf6 {[%clk 0:00:01]}  Bf4 {[%clk 0:00:30]} 0-1


[Site "https://www.chess.com"]

[Event "Titled Tuesday Blitz April 05 Late 2022"]
[White "Almagro Mazariegos, Sebastian"]
[Black "Szente Varga, Fruzsina"]
[WhiteFideId "2221640"]
[BlackFideId "712264"]
[WhiteElo "2376"]
[BlackElo "2204"]
[Result "0-1"]
[Round "08"]
[TimeControl "180+1"]
[Date "2022.04.06"]
[WhiteClock "0:02:17"]
[BlackClock "0:02:11"]

1. e4 {[%clk 0:03:00]}  e5 {[%clk 0:02:58]} 2. Nf3 {[%clk 0:02:57]}  Nc6 {[%clk 0:02:58]} 3. d4 {[%clk 0:02:56]}  exd4 {[%clk 0:02:53]} 4. Nxd4 {[%clk 0:02:57]}  Qf6 {[%clk 0:02:50]} 5. Nxc6 {[%clk 0:02:55]}  dxc6 {[%clk 0:02:43]} 6. Bd3 {[%clk 0:02:52]}  Be6 {[%clk 0:02:39]} 7. O-O {[%clk 0:02:49]}  O-O-O {[%clk 0:02:33]} 8. Nc3 {[%clk 0:02:48]}  h5 {[%clk 0:02:27]} 9. Qe2 {[%clk 0:02:46]}  Nh6 {[%clk 0:02:25]} 10. Qxh5 {[%clk 0:02:38]}  Bd6 {[%clk 0:02:22]} 11. f4 {[%clk 0:02:25]}  Ng4 {[%clk 0:02:15]} 12. e5 {[%clk 0:02:17]}  Bc5+ {[%clk 0:02:11]} 13. Kh1 {[%clk 0:02:17]}  Rxh5 {[%clk 0:02:11]} 0-1


[Site "https://www.chess.com"]

[Event "Titled Tuesday Blitz April 05 Late 2022"]
[White "Ashiev, Eduard"]
[Black "Silvestre, Christian"]
[WhiteFideId "4130090"]
[BlackFideId "30956269"]
[WhiteElo "2220"]
[BlackElo "2392"]
[Result "1-0"]
[Round "08"]
[TimeControl "180+1"]
[Date "2022.04.06"]
[WhiteClock "0:00:13"]
[BlackClock "0:00:30"]

1. d4 {[%clk 0:03:00]}  Nf6 {[%clk 0:02:56]} 2. Nf3 {[%clk 0:03:00]}  d6 {[%clk 0:02:52]} 3. c4 {[%clk 0:03:00]}  Nbd7 {[%clk 0:02:50]} 4. Nc3 {[%clk 0:03:00]}  e5 {[%clk 0:02:50]} 5. e4 {[%clk 0:02:58]}  Be7 {[%clk 0:02:50]} 6. h3 {[%clk 0:02:58]}  O-O {[%clk 0:02:48]} 7. Be2 {[%clk 0:02:56]}  Re8 {[%clk 0:02:46]} 8. O-O {[%clk 0:02:55]}  Bf8 {[%clk 0:02:46]} 9. d5 {[%clk 0:02:51]}  c6 {[%clk 0:02:38]} 10. Be3 {[%clk 0:02:49]}  a6 {[%clk 0:02:34]} 11. Rc1 {[%clk 0:02:36]}  Rb8 {[%clk 0:02:30]} 12. b4 {[%clk 0:02:32]}  c5 {[%clk 0:02:24]} 13. b5 {[%clk 0:02:21]}  a5 {[%clk 0:02:23]} 14. Nd2 {[%clk 0:02:17]}  b6 {[%clk 0:02:20]} 15. a4 {[%clk 0:02:10]}  g6 {[%clk 0:02:19]} 16. g4 {[%clk 0:01:50]}  Kh8 {[%clk 0:02:13]} 17. f3 {[%clk 0:01:49]}  Ng8 {[%clk 0:02:10]} 18. Bd3 {[%clk 0:01:46]}  h5 {[%clk 0:02:04]} 19. Qe1 {[%clk 0:01:42]}  Be7 {[%clk 0:01:59]} 20. Qg3 {[%clk 0:01:32]}  Bh4 {[%clk 0:01:55]} 21. Qg2 {[%clk 0:01:32]}  Ngf6 {[%clk 0:01:48]} 22. Ne2 {[%clk 0:01:19]}  Nh7 {[%clk 0:01:46]} 23. Kh1 {[%clk 0:01:02]}  Bg5 {[%clk 0:01:40]} 24. Qg1 {[%clk 0:00:57]}  Bxe3 {[%clk 0:01:37]} 25. Qxe3 {[%clk 0:00:56]}  Qh4 {[%clk 0:01:35]} 26. Kg2 {[%clk 0:00:53]}  Ndf6 {[%clk 0:01:29]} 27. Rh1 {[%clk 0:00:51]}  Ng8 {[%clk 0:01:12]} 28. Rcg1 {[%clk 0:00:45]}  f5 {[%clk 0:01:09]} 29. Kf1 {[%clk 0:00:42]}  f4 {[%clk 0:01:06]} 30. Qf2 {[%clk 0:00:39]}  Qxf2+ {[%clk 0:01:03]} 31. Kxf2 {[%clk 0:00:40]}  h4 {[%clk 0:01:01]} 32. Kg2 {[%clk 0:00:30]}  Ng5 {[%clk 0:00:58]} 33. Rb1 {[%clk 0:00:28]}  Kg7 {[%clk 0:00:57]} 34. Rhf1 {[%clk 0:00:27]}  Nf6 {[%clk 0:00:57]} 35. Ng1 {[%clk 0:00:26]}  Bd7 {[%clk 0:00:56]} 36. Be2 {[%clk 0:00:26]}  Rh8 {[%clk 0:00:55]} 37. Rb2 {[%clk 0:00:26]}  Rh7 {[%clk 0:00:54]} 38. Rbb1 {[%clk 0:00:26]}  Rbh8 {[%clk 0:00:54]} 39. Rb2 {[%clk 0:00:26]}  Ne8 {[%clk 0:00:53]} 40. Rbb1 {[%clk 0:00:26]}  Nc7 {[%clk 0:00:53]} 41. Rb2 {[%clk 0:00:26]}  Kf6 {[%clk 0:00:53]} 42. Rbb1 {[%clk 0:00:26]}  Nf7 {[%clk 0:00:53]} 43. Rb2 {[%clk 0:00:26]}  Kg5 {[%clk 0:00:52]} 44. Rbb1 {[%clk 0:00:26]}  Ne8 {[%clk 0:00:52]} 45. Rb2 {[%clk 0:00:26]}  Nf6 {[%clk 0:00:52]} 46. Rbb1 {[%clk 0:00:25]}  Nh6 {[%clk 0:00:52]} 47. Rb2 {[%clk 0:00:22]}  Re7 {[%clk 0:00:52]} 48. Rbb1 {[%clk 0:00:22]}  Rf8 {[%clk 0:00:52]} 49. Rb2 {[%clk 0:00:22]}  Nh7 {[%clk 0:00:52]} 50. Rbb1 {[%clk 0:00:22]}  Kf6 {[%clk 0:00:53]} 51. Rb2 {[%clk 0:00:21]}  Kg7 {[%clk 0:00:53]} 52. Rbb1 {[%clk 0:00:21]}  Ng5 {[%clk 0:00:53]} 53. Rb2 {[%clk 0:00:21]}  Ng8 {[%clk 0:00:53]} 54. Rbb1 {[%clk 0:00:21]}  Nf6 {[%clk 0:00:53]} 55. Rb2 {[%clk 0:00:22]}  Bc8 {[%clk 0:00:53]} 56. Rbb1 {[%clk 0:00:22]}  Bb7 {[%clk 0:00:53]} 57. Rb2 {[%clk 0:00:23]}  Ref7 {[%clk 0:00:51]} 58. Rbb1 {[%clk 0:00:23]}  Bc8 {[%clk 0:00:51]} 59. Rb2 {[%clk 0:00:23]}  Bd7 {[%clk 0:00:51]} 60. Rbb1 {[%clk 0:00:23]}  Nfh7 {[%clk 0:00:50]} 61. Rb2 {[%clk 0:00:24]}  Kh6 {[%clk 0:00:50]} 62. Rbb1 {[%clk 0:00:24]}  Rg7 {[%clk 0:00:51]} 63. Rb2 {[%clk 0:00:25]}  Nf7 {[%clk 0:00:51]} 64. Rbb1 {[%clk 0:00:25]}  Nd8 {[%clk 0:00:51]} 65. Rb2 {[%clk 0:00:25]}  Ng5 {[%clk 0:00:51]} 66. Rbb1 {[%clk 0:00:25]}  Kh7 {[%clk 0:00:51]} 67. Rb2 {[%clk 0:00:26]}  Kg8 {[%clk 0:00:52]} 68. Rbb1 {[%clk 0:00:26]}  Ndf7 {[%clk 0:00:52]} 69. Rb2 {[%clk 0:00:26]}  Nh6 {[%clk 0:00:52]} 70. Rbb1 {[%clk 0:00:27]}  Nxg4 {[%clk 0:00:53]} 71. fxg4 {[%clk 0:00:21]}  Kh7 {[%clk 0:00:51]} 72. Ngf3 {[%clk 0:00:18]}  Kh6 {[%clk 0:00:49]} 73. Nxg5 {[%clk 0:00:18]}  Kxg5 {[%clk 0:00:49]} 74. Nf3+ {[%clk 0:00:18]}  Kf6 {[%clk 0:00:50]} 75. g5+ {[%clk 0:00:16]}  Ke7 {[%clk 0:00:49]} 76. Nh2 {[%clk 0:00:15]}  Rh8 {[%clk 0:00:48]} 77. Bg4 {[%clk 0:00:16]}  Bxg4 {[%clk 0:00:45]} 78. Nxg4 {[%clk 0:00:16]}  Rh5 {[%clk 0:00:44]} 79. Kf3 {[%clk 0:00:14]}  Rxg5 {[%clk 0:00:44]} 80. Rg1 {[%clk 0:00:14]}  Rg8 {[%clk 0:00:40]} 81. Rg2 {[%clk 0:00:14]}  Rg7 {[%clk 0:00:39]} 82. Rbg1 {[%clk 0:00:14]}  Rg8 {[%clk 0:00:39]} 83. Kf2 {[%clk 0:00:13]}  Rg7 {[%clk 0:00:38]} 84. Kf3 {[%clk 0:00:14]}  Rg8 {[%clk 0:00:38]} 85. Nh6 {[%clk 0:00:13]}  Rxg2 {[%clk 0:00:31]} 86. Nxg8+ {[%clk 0:00:13]}  Kf8 {[%clk 0:00:30]} 87. Rxg2 {[%clk 0:00:13]} 1-0


[Site "https://www.chess.com"]

[Event "Titled Tuesday Blitz April 05 Late 2022"]
[White "Bachmann, Axel"]
[Black "Foisor, Sabina-Francesca"]
[WhiteFideId "3700488"]
[BlackFideId "1212915"]
[WhiteElo "2518"]
[BlackElo "2357"]
[Result "1-0"]
[Round "08"]
[TimeControl "180+1"]
[Date "2022.04.06"]
[WhiteClock "0:00:30"]
[BlackClock "0:00:07"]

1. d4 {[%clk 0:02:58]}  d5 {[%clk 0:02:59]} 2. Nf3 {[%clk 0:02:57]}  Nf6 {[%clk 0:02:56]} 3. g3 {[%clk 0:02:57]}  e6 {[%clk 0:02:50]} 4. c4 {[%clk 0:02:57]}  Be7 {[%clk 0:02:50]} 5. Bg2 {[%clk 0:02:57]}  O-O {[%clk 0:02:50]} 6. O-O {[%clk 0:02:56]}  c6 {[%clk 0:02:51]} 7. Qc2 {[%clk 0:02:55]}  b6 {[%clk 0:02:51]} 8. Rd1 {[%clk 0:02:53]}  Bb7 {[%clk 0:02:49]} 9. Nbd2 {[%clk 0:02:51]}  Na6 {[%clk 0:02:48]} 10. a3 {[%clk 0:02:30]}  Rc8 {[%clk 0:02:43]} 11. b4 {[%clk 0:02:28]}  c5 {[%clk 0:02:21]} 12. dxc5 {[%clk 0:02:27]}  bxc5 {[%clk 0:02:20]} 13. b5 {[%clk 0:02:27]}  Nc7 {[%clk 0:02:05]} 14. Bb2 {[%clk 0:01:48]}  Qe8 {[%clk 0:01:52]} 15. a4 {[%clk 0:01:44]}  Nd7 {[%clk 0:01:36]} 16. e3 {[%clk 0:01:37]}  Bf6 {[%clk 0:01:21]} 17. Bxf6 {[%clk 0:01:33]}  Nxf6 {[%clk 0:01:16]} 18. Ne5 {[%clk 0:01:32]}  Ba8 {[%clk 0:01:09]} 19. Rdb1 {[%clk 0:01:20]}  dxc4 {[%clk 0:00:54]} 20. Bxa8 {[%clk 0:01:18]}  Rxa8 {[%clk 0:00:45]} 21. Ndxc4 {[%clk 0:01:18]}  Ncd5 {[%clk 0:00:38]} 22. Nd6 {[%clk 0:01:02]}  Qe7 {[%clk 0:00:35]} 23. Qxc5 {[%clk 0:00:58]}  Rac8 {[%clk 0:00:27]} 24. Nc6 {[%clk 0:00:56]}  Qc7 {[%clk 0:00:14]} 25. Nxc8 {[%clk 0:00:56]}  Rxc8 {[%clk 0:00:15]} 26. Qxa7 {[%clk 0:00:49]}  Qd6 {[%clk 0:00:12]} 27. Rd1 {[%clk 0:00:44]}  h5 {[%clk 0:00:11]} 28. Rac1 {[%clk 0:00:40]}  Ng4 {[%clk 0:00:10]} 29. Ne7+ {[%clk 0:00:33]}  Qxe7 {[%clk 0:00:06]} 30. Rxc8+ {[%clk 0:00:30]}  Kh7 {[%clk 0:00:06]} 31. Qxe7 {[%clk 0:00:30]}  Nxe7 {[%clk 0:00:07]} 1-0


[Site "https://www.chess.com"]